bitfinex-derivatives/quotes_ETHF0:USTF0_20250507
["timestamp","ask_amount","ask_price","bid_price","bid_amount"]
[1746583214087,1.5845,1834.9,1834.7,1.09015]
[1746583214291,1.5845,1834.9,1834.8,6.83779199]
[1746583214292,1.6979,1834.9,1834.8,6.83779199]
[1746583214490,14.38560227,1835.0,1834.8,6.83779199]
[1746583214686,17.11054227,1835.0,1834.6,46.549]
[1746583214893,3.2078,1834.8,1834.6,55.04897199]
[1746583215090,1.09015,1834.7,1834.6,55.04897199]
[1746583215391,1.09015,1834.7,1834.6,53.95880199]
[1746583215594,1.09015,1834.7,1834.6,40.8]
[1746583215895,2.78805,1834.7,1834.6,40.8]
[1746583216196,6.38805,1834.7,1834.6,40.8]
[1746583216891,11.38805,1834.7,1834.6,40.8]
[1746583217086,1.09038,1834.3,1834.2,1.6621]
[1746583217290,1.0905,1834.1,1834.0,6.83956]
[1746583217490,4.2983,1834.1,1834.0,53.38726199]
[1746583217689,3.2078,1834.1,1834.0,53.38726199]
[1746583218392,3.2078,1834.1,1834.0,52.29670199]
[1746583218697,4.2983,1834.1,1834.0,40.8]
[1746583218995,4.2983,1834.1,1834.0,41.89056]
[1746583219297,1.09072,1833.8,1833.6,1.09076]
[1746583219493,4.9535,1833.7,1833.6,1.09076]
[1746583219695,4.9535,1833.7,1833.6,41.89076]
[1746583219890,6.04424,1833.7,1833.6,47.63846199]
[1746583220091,6.04424,1833.7,1833.6,47.63850199]
[1746583220295,6.04424,1833.7,1833.6,40.8]
[1746583220495,4.9535,1833.7,1833.6,47.63850199]
[1746583220894,3.2078,1833.7,1833.6,47.63850199]
[1746583221096,4.29854,1833.7,1833.6,40.8]
[1746583221295,1.09092,1833.4,1833.3,8.44036]
[1746583221598,1.09092,1833.4,1833.3,7.3494]
[1746583221798,1.09092,1833.4,1833.3,54.98808199]
[1746583222004,2.72512,1833.4,1833.3,54.98808199]
[1746583222497,3.2078,1833.5,1833.4,1.09092]
[1746583222697,4.29866,1833.5,1833.4,8.42952199]
[1746583222887,4.29866,1833.5,1833.4,7.33860199]
[1746583223400,4.29866,1833.5,1833.4,8.42952199]
[1746583223695,3.2078,1833.5,1833.4,8.42952199]
[1746583225593,3.2078,1833.5,1833.4,12.63652199]
[1746583227807,4.29866,1833.5,1833.4,12.63652199]
[1746583228101,3.2078,1833.5,1833.4,12.63652199]
[1746583228301,5.972,1833.7,1833.6,1.0908]
[1746583228493,16.5162,1833.9,1833.6,5.74770199]
[1746583228801,10.8542,1833.9,1833.8,1.09068]
[1746583229001,3.2078,1833.9,1833.8,6.83838199]
[1746583229201,1.09062,1833.9,1833.8,5.74770199]
[1746583229807,4.29842,1833.9,1833.8,6.83836199]
[1746583230499,1.09062,1833.9,1833.8,6.83836199]
[1746583230706,1.09061,1834.0,1833.9,1.0906]
[1746583231004,2.79931,1834.0,1833.9,2.6931]
[1746583231202,2.79931,1834.0,1833.9,1.6025]
[1746583232000,2.79931,1834.0,1833.9,2.69312]
[1746583232508,1.09061,1834.0,1833.9,8.44082199]
[1746583232808,11.97995,1834.1,1834.0,1.09056]
[1746583233007,10.8894,1834.1,1834.0,8.50036199]
[1746583233206,14.4894,1834.1,1834.0,2.75266]
[1746583233411,12.7798,1834.1,1834.0,8.50036199]
[1746583234214,9.1798,1834.1,1834.0,8.50036199]
[1746583234713,9.1798,1834.6,1834.1,2.72614]
[1746583234912,1.09032,1834.5,1834.3,6.83804199]
[1746583235106,1.09032,1834.5,1834.4,1.09032]
[1746583235908,3.2078,1834.6,1834.5,1.09026]
[1746583236402,3.2078,1834.6,1834.3,1.09032]
[1746583236603,1.09032,1834.4,1834.3,6.83802199]
[1746583236804,1.09031,1834.5,1834.4,1.09031]
[1746583237105,1.09032,1834.4,1834.3,6.83804199]
[1746583237512,1.09031,1834.5,1834.4,1.09031]
[1746583237812,3.2078,1834.6,1834.5,1.09026]
[1746583238405,4.29801,1834.6,1834.5,2.78246]
[1746583238903,4.29801,1834.6,1834.5,1.6922]
[1746583239103,4.29801,1834.6,1834.5,2.78246]
[1746583240016,4.29801,1834.6,1834.5,1.6922]
[1746583240616,4.29801,1834.6,1834.5,2.78246]
[1746583240915,3.2078,1834.6,1834.5,2.78246]
[1746583241714,3.2078,1834.6,1834.5,8.53016199]
[1746583242710,5.972,1834.7,1834.6,1.09021]
[1746583242907,5.972,1834.7,1834.6,8.42471199]
[1746583243117,5.972,1834.7,1834.6,13.95971199]
[1746583243318,7.06215,1834.7,1834.6,13.95971199]
[1746583243617,7.06215,1834.7,1834.6,5.535]
[1746583243817,10.26995,1834.7,1834.6,5.535]
[1746583244118,1.09021,1834.6,1834.5,1.09023]
[1746583244321,1.09032,1834.4,1834.3,8.36913]
[1746583244616,1.09031,1834.5,1834.4,6.83799199]
[1746583245009,1.09031,1834.5,1834.4,1.09029]
[1746583245410,1.09032,1834.4,1834.3,8.36914]
[1746583246220,1.09032,1834.4,1834.3,14.11684199]
[1746583246413,1.09031,1834.5,1834.4,1.09029]
[1746583246720,1.09025,1834.6,1834.5,1.09023]
[1746583246920,10.7443,1834.7,1834.4,8.51628199]
[1746583246921,1.09026,1834.5,1834.4,8.51628199]
[1746583247422,1.09025,1834.6,1834.5,1.09023]
[1746583248116,10.7443,1834.7,1834.6,1.09021]
[1746583248117,10.26996,1834.7,1834.6,1.09021]
[1746583248419,5.972,1834.7,1834.6,6.83791199]
[1746583248620,5.972,1834.7,1834.6,8.39671199]
[1746583248816,5.39880227,1834.9,1834.8,1.09009]
[1746583249121,5.39880227,1834.9,1834.8,12.37279199]
[1746583249315,5.39880227,1834.9,1834.8,53.17279199]
[1746583249819,6.48883227,1834.9,1834.8,53.17279199]
[1746583250023,5.39880227,1834.9,1834.8,53.17279199]
[1746583250211,6.48883227,1834.9,1834.8,52.08270199]
[1746583250410,6.48883227,1834.9,1834.8,46.335]
[1746583250615,11.38433227,1834.9,1834.8,46.335]
[1746583251123,14.98433227,1834.9,1834.8,46.335]
[1746583251615,14.98433227,1834.9,1834.8,40.8]
[1746583251816,20.95633227,1834.9,1834.8,40.8]
[1746583252022,1.09009,1834.8,1834.7,1.9076]
[1746583252322,2.84709,1834.8,1834.7,1.9076]
[1746583252521,1.09015,1834.7,1834.6,40.8]
[1746583252721,6.05495,1834.7,1834.6,40.8]
[1746583252921,1.09031,1834.5,1834.4,1.0903]
[1746583253122,11.29018,1834.7,1834.5,0.81749]
[1746583253423,1.09021,1834.6,1834.5,0.81749]
[1746583253624,2.84721,1834.6,1834.5,0.81749]
[1746583253815,1.09026,1834.5,1834.4,43.4988]
[1746583254017,1.7254,1834.5,1834.4,43.4988]
[1746583254216,1.09023,1834.6,1834.5,1.09023]
[1746583254420,2.81563,1834.6,1834.5,5.74770199]
[1746583254717,1.09026,1834.5,1834.4,40.8]
[1746583255019,2.81566,1834.5,1834.4,44.473]
[1746583255216,2.81566,1834.5,1834.4,50.22070199]
[1746583255419,2.81566,1834.5,1834.4,8.60312199]
[1746583255619,1.09025,1834.6,1834.4,8.60312199]
[1746583255823,1.09025,1834.6,1834.5,5.74770199]
[1746583256018,1.09025,1834.6,1834.5,1.7651]
[1746583256223,1.7254,1834.7,1834.6,1.09021]
[1746583256523,1.09015,1834.7,1834.6,6.83791199]
[1746583257520,1.09015,1834.7,1834.6,5.74770199]
[1746583257726,1.09015,1834.7,1834.6,6.83791199]
[1746583257923,5.39880227,1834.7,1834.6,6.83791199]
[1746583258626,5.39880227,1834.7,1834.6,8.43011199]
[1746583258826,6.48895227,1834.7,1834.6,8.43011199]
[1746583259214,5.39880227,1834.7,1834.6,8.43011199]
[1746583259822,5.39880227,1834.7,1834.6,5.74770199]
[1746583260027,8.23815227,1834.7,1834.6,5.74770199]
[1746583260330,1.09021,1834.6,1834.5,49.19033]
[1746583260627,1.7492,1834.6,1834.5,54.93803199]
[1746583260929,2.83941,1834.6,1834.5,54.93803199]
[1746583261426,2.83941,1834.6,1834.5,46.335]
[1746583261820,2.83941,1834.6,1834.5,47.42526]
[1746583262124,2.83941,1834.6,1834.5,49.11636]
[1746583262429,4.29798,1834.7,1834.6,1.09021]
[1746583262724,4.29798,1834.7,1834.6,6.83791199]
[1746583262927,4.29798,1834.7,1834.6,1.09021]
[1746583263125,3.2078,1834.7,1834.6,6.83791199]
[1746583263318,4.29795,1834.7,1834.6,6.83791199]
[1746583263828,3.2078,1834.7,1834.6,6.83791199]
[1746583264030,7.14800227,1834.8,1834.7,1.09015]
[1746583264031,5.39880227,1834.8,1834.7,1.09015]
[1746583264225,5.39880227,1834.8,1834.7,10.18215199]
[1746583264731,2.97460227,1834.8,1834.7,15.18215199]
[1746583266031,5.972,1835.2,1835.1,1.08991]
[1746583266326,1.08979,1835.3,1835.2,1.08985]
[1746583266522,15.00148227,1835.4,1835.3,1.08979]
[1746583266723,2.97460227,1835.4,1835.3,8.46169199]
[1746583266927,1.08985,1835.2,1835.1,7.2334]
[1746583267126,1.08985,1835.2,1835.1,7.1582]
[1746583267329,1.09002,1835.0,1834.9,1.09002]
[1746583267626,1.7404,1835.1,1835.0,6.83767199]
[1746583267827,16.71330227,1835.4,1835.1,1.08989]
[1746583268029,1.08989,1835.2,1835.1,7.37190199]
[1746583268230,1.08989,1835.2,1835.1,2.71411]
[1746583268923,3.2078,1835.2,1834.9,1.09]
[1746583269129,1.08999,1835.0,1834.9,6.83770199]
[1746583269426,1.08999,1835.0,1834.9,8.54170199]
[1746583269831,6.8078,1835.2,1834.9,7.45170199]
[1746583270031,6.8078,1835.2,1835.1,6.83761199]
[1746583270335,3.2078,1835.2,1835.1,6.83761199]
[1746583270535,4.29765,1835.2,1835.1,6.83761199]
[1746583271629,4.29765,1835.2,1835.1,5.74770199]
[1746583272130,1.08997,1835.0,1834.9,2.79403]
[1746583272326,1.6098,1835.1,1835.0,1.08997]
[1746583272628,12.7798,1835.2,1835.1,5.74770199]
[1746583273019,13.86969,1835.2,1835.1,1.08991]
[1746583273226,10.26969,1835.2,1835.1,1.08991]
[1746583273434,5.972,1835.2,1835.1,1.08991]
[1746583273736,5.972,1835.2,1835.1,6.83761199]
[1746583274031,7.06185,1835.2,1835.1,6.83761199]
[1746583274232,5.972,1835.2,1835.1,6.83761199]
[1746583274527,4.7545,1835.5,1835.1,10.04541199]
[1746583274720,4.8176,1835.5,1835.4,6.83743199]
[1746583274922,3.2078,1835.5,1835.4,6.83743199]
[1746583275123,14.23661529,1835.6,1835.5,1.08967]
[1746583275325,7.17496529,1835.6,1835.5,8.54917199]
[1746583275924,16.07016886,1835.7,1835.6,1.08961]
[1746583276125,14.98061886,1835.7,1835.6,1.08961]
[1746583276327,1.08961,1835.6,1835.5,1.7118]
[1746583276630,1.08973,1835.4,1835.3,2.69885]
[1746583276827,2.71302,1835.5,1835.4,1.08973]
[1746583277131,2.71302,1835.5,1835.4,5.74770199]
[1746583277433,1.6233,1835.5,1835.4,1.08973]
[1746583277729,16.07020886,1835.7,1835.4,5.74770199]
[1746583277930,1.6233,1835.6,1835.5,8.54913199]
[1746583278132,2.71291,1835.6,1835.5,8.54913199]
[1746583278337,14.98061886,1835.7,1835.6,1.08961]
[1746583278527,14.98061886,1835.7,1835.6,6.83731199]
[1746583278729,9.00861886,1835.7,1835.6,6.83731199]
[1746583279234,9.00861886,1835.7,1835.6,47.63731199]
[1746583279434,17.79900214,1835.8,1835.7,1.08955]
[1746583279731,14.95859214,1835.8,1835.7,8.53605199]
[1746583280234,18.55859214,1835.8,1835.7,8.53605199]
[1746583281131,14.95859214,1835.8,1835.7,8.53605199]
[1746583281936,1.08955,1835.7,1835.6,40.8]
[1746583282138,6.40345,1835.7,1835.6,46.54770199]
[1746583282639,6.40345,1835.7,1835.6,40.8]
[1746583283030,24.22781,1835.7,1835.1,1.5485]
[1746583283336,22.43561,1835.7,1835.4,1.08973]
[1746583283536,1.08972,1835.5,1835.4,1.08973]
[1746583283731,1.08973,1835.4,1835.3,40.8]
[1746583283942,2.80363,1835.4,1835.3,46.54770199]
[1746583284333,1.0899,1835.2,1835.1,1.08991]
[1746583284533,1.0899,1835.2,1835.1,5.74770199]
[1746583284839,1.08983,1835.3,1835.1,46.54770199]
[1746583285035,1.08985,1835.2,1835.1,47.63757199]
[1746583285239,5.2921,1835.3,1835.2,5.74770199]
[1746583285431,1.08985,1835.2,1835.1,46.54770199]
[1746583285636,2.78195,1835.2,1835.1,43.79711]
[1746583285838,2.78195,1835.2,1835.1,42.7072]
[1746583286244,6.38195,1835.2,1835.1,40.8]
[1746583286938,1.08991,1835.1,1835.0,7.2023]
[1746583287137,2.78201,1835.1,1835.0,7.2023]
[1746583287337,2.78201,1835.1,1835.0,5.295]
[1746583287534,1.6921,1835.1,1835.0,5.295]
[1746583287736,1.6921,1835.1,1835.0,12.13267199]
[1746583287936,6.883,1835.3,1835.2,1.08985]
[1746583288138,5.1981,1835.3,1835.2,6.83755199]
[1746583288338,3.6,1835.3,1835.2,1.08985]
[1746583289144,3.2169,1835.4,1835.3,1.08979]
[1746583289347,4.30663,1835.4,1835.3,1.08979]
[1746583289745,1.0898,1835.3,1835.2,1.08981]
[1746583290041,1.08985,1835.2,1835.1,1.08987]
[1746583290344,1.08985,1835.2,1835.1,6.83757199]
[1746583291245,4.68985,1835.2,1835.1,6.83757199]
[1746583291745,2.03303,1835.2,1835.1,15.04537199]
[1746583292140,7.5514,1835.6,1835.1,8.95550199]
[1746583292338,1.7577,1835.5,1835.2,6.83752199]
[1746583292541,1.08983,1835.3,1835.2,6.83752199]
[1746583292740,3.2078,1835.4,1835.2,1.08981]
[1746583292946,1.7577,1835.3,1835.0,5.295]
[1746583293139,5.3577,1835.3,1835.1,5.74770199]
[1746583293342,1.08985,1835.2,1835.1,5.74770199]
[1746583293538,2.78725,1835.2,1835.1,6.83761199]
[1746583293741,1.6974,1835.2,1835.1,6.83761199]
[1746583294050,3.6,1835.3,1835.1,5.74770199]
[1746583294351,4.68985,1835.2,1835.1,6.83756199]
[1746583294648,6.38725,1835.2,1835.1,6.83756199]
[1746583294840,3.6,1835.2,1835.1,6.83756199]
[1746583295245,5.972,1835.4,1835.3,1.08979]
[1746583295445,5.972,1835.4,1835.3,6.83749199]
[1746583296244,5.972,1835.4,1835.3,10.04529199]
[1746583296746,7.18095018,1835.5,1835.4,1.08973]
[1746583296951,7.18095018,1835.5,1835.4,12.13243199]
[1746583299346,7.18095018,1835.5,1835.4,13.73113199]
[1746583299547,6.06126018,1835.5,1835.4,18.73113199]
[1746583299746,3.2078,1835.9,1835.8,1.08949]
[1746583299747,6.80245052,1835.9,1835.8,1.08949]
[1746583299947,6.80245052,1835.9,1835.7,5.74770199]
[1746583300142,2.70574,1835.8,1835.7,1.08955]
[1746583300348,2.70574,1835.8,1835.7,2.99615]
[1746583300648,11.49192052,1835.9,1835.8,1.08949]
[1746583301246,8.28412052,1835.9,1835.8,1.08949]
[1746583301552,1.08949,1835.8,1835.7,4.67071]
[1746583301747,2.70569,1835.8,1835.7,2.99611]
[1746583301941,2.70569,1835.8,1835.7,1.08951]
[1746583302146,6.30569,1835.8,1835.7,1.08951]
[1746583303049,6.30569,1835.8,1835.7,2.83281]
[1746583304663,6.30569,1835.8,1835.7,1.7433]
[1746583304954,1.08955,1835.7,1835.6,1.9067]
[1746583305155,1.08961,1835.6,1835.5,1.08966]
[1746583305358,1.08961,1835.6,1835.5,6.83736199]
[1746583305552,2.82981,1835.6,1835.5,6.83736199]
[1746583305748,1.7402,1835.6,1835.5,6.83736199]
[1746583305953,3.6,1835.7,1835.6,1.08961]
[1746583306252,1.08955,1835.7,1835.6,2.79741]
[1746583307158,6.42975,1835.7,1835.6,2.79741]
[1746583307359,6.42975,1835.7,1835.6,1.7078]
[1746583307550,3.6,1835.7,1835.6,8.54511199]
[1746583308871,3.6,1835.7,1835.6,13.54511199]
[1746583309062,7.89183052,1836.0,1835.6,13.54511199]
[1746583309269,7.89183052,1836.0,1835.9,6.83713199]
[1746583309671,6.80245052,1836.0,1835.9,6.83713199]
[1746583309873,7.89182052,1836.0,1835.9,8.49333199]
[1746583310169,9.56097,1836.0,1835.9,1.6562]
[1746583310670,9.56097,1836.0,1835.9,2.74563]
[1746583310970,1.08949,1835.8,1835.7,7.89391]
[1746583311267,4.68949,1835.8,1835.7,5.138]
[1746583311870,4.68949,1835.8,1835.7,6.22755]
[1746583312473,4.68949,1835.8,1835.7,5.138]
[1746583312663,4.68949,1835.8,1835.7,6.22755]
[1746583313969,4.68949,1835.8,1835.7,11.97525199]
[1746583314372,8.28694396,1835.8,1835.7,11.97525199]
[1746583316772,8.28694396,1835.8,1835.7,10.88570199]
[1746583316967,8.28694396,1835.8,1835.7,11.97525199]
[1746583317167,11.49474396,1835.8,1835.7,5.138]
[1746583317366,7.89729,1835.8,1835.6,1.6562]
[1746583317570,1.6814,1835.7,1835.5,1.08965]
[1746583317867,1.08967,1835.6,1835.5,6.83735199]
[1746583318066,1.08967,1835.6,1835.5,5.74770199]
[1746583318373,1.08967,1835.5,1835.4,7.0449]
[1746583318574,2.82617,1835.5,1835.4,1.9069]
[1746583318772,2.82617,1835.5,1835.4,2.99663]
[1746583318971,2.82617,1835.5,1835.4,4.73333]
[1746583319175,6.42617,1835.5,1835.4,4.73333]
[1746583320275,3.6,1835.5,1835.4,10.48103199]
[1746583320471,4.68967,1835.5,1835.4,1.9069]
[1746583320775,11.42617,1835.5,1835.4,1.9069]
[1746583321072,11.42617,1835.5,1835.0,1.6559]
[1746583321073,17.39817,1835.5,1835.0,1.6559]
[1746583321375,1.08983,1835.3,1835.2,5.74770199]
[1746583321774,2.73293,1835.3,1835.2,1.6201]
[1746583322275,1.08985,1835.2,1835.1,1.7993]
[1746583322471,2.73295,1835.2,1835.1,1.7993]
[1746583322775,1.08997,1835.0,1834.9,41.6174]
[1746583323075,1.08997,1835.0,1834.9,42.70743]
[1746583323264,1.08997,1835.0,1834.9,50.07523199]
[1746583323468,1.6431,1835.1,1835.0,1.08997]
[1746583323782,2.73301,1835.1,1835.0,8.45777199]
[1746583324073,1.08997,1835.0,1834.9,41.6174]
[1746583324274,2.80577,1835.0,1834.9,41.6174]
[1746583325170,6.40577,1835.0,1834.9,0.8174]
[1746583325379,11.58897518,1835.0,1834.9,0.8174]
[1746583325568,1.09003,1834.9,1834.8,1.7996]
[1746583325769,4.51123,1834.9,1834.7,4.207]
[1746583325969,9.29989,1834.8,1834.7,4.207]
[1746583326171,14.61569,1834.8,1834.7,4.207]
[1746583327071,13.5256,1834.8,1834.7,5.29715]
[1746583327270,14.61569,1834.8,1834.7,5.8485]
[1746583327971,14.61569,1834.8,1834.7,6.93865]
[1746583328375,14.61569,1834.8,1834.7,5.8485]
[1746583328584,14.61569,1834.8,1834.7,12.68635199]
[1746583328879,11.40789,1834.8,1834.7,11.59620199]
[1746583329273,11.40789,1834.8,1834.7,12.68635199]
[1746583329580,11.40789,1834.8,1834.7,11.59620199]
[1746583330080,11.40789,1834.8,1834.7,9.95470199]
[1746583330579,11.40789,1834.8,1834.7,4.207]
[1746583331179,11.40789,1834.8,1834.7,5.9141]
[1746583331480,14.61569,1834.8,1834.7,4.207]
[1746583332377,14.61569,1834.8,1834.7,5.9141]
[1746583332778,9.61369,1834.8,1834.7,5.9141]
[1746583332981,12.85289,1834.8,1834.7,11.66180199]
[1746583333185,12.85289,1834.8,1834.7,14.95620199]
[1746583334580,12.85289,1834.8,1834.7,16.04635199]
[1746583334880,12.85289,1834.8,1834.7,14.95620199]
[1746583335081,14.44739,1834.8,1834.7,14.95620199]
[1746583335282,14.44739,1834.8,1834.7,13.37620199]
[1746583335485,14.44739,1834.8,1834.7,4.207]
[1746583336481,19.3293,1834.8,1834.6,1.7999]
[1746583336681,1.0905,1834.1,1834.0,3.4399]
[1746583336984,1.09044,1834.2,1834.1,5.74770199]
[1746583337175,1.09056,1834.0,1833.9,1.6367]
[1746583337382,1.0908,1833.6,1833.5,7.26113846]
[1746583338177,7.8986,1833.6,1833.5,7.26113846]
[1746583338880,7.8986,1833.6,1833.5,14.64554045]
[1746583339079,7.8986,1833.6,1833.5,7.38440199]
[1746583339473,7.8986,1833.6,1833.5,1.6367]
[1746583339691,7.8986,1833.6,1833.5,7.38440199]
[1746583342485,6.8078,1833.6,1833.5,8.47526199]
[1746583342881,3.6,1833.6,1833.5,13.47526199]
[1746583343191,5.972,1833.8,1833.7,1.09074]
[1746583343489,5.972,1833.8,1833.7,6.83844199]
[1746583343992,1.09056,1834.0,1833.9,1.0906]
[1746583344290,4.69056,1834.0,1833.9,6.83830199]
[1746583344477,3.6,1834.0,1833.9,6.83830199]
[1746583346185,4.68796396,1834.1,1834.0,1.09056]
[1746583346387,6.03449,1834.2,1834.0,10.13606199]
[1746583346684,6.03449,1834.2,1834.1,5.74770199]
[1746583347085,9.63449,1834.2,1834.1,5.74770199]
[1746583347492,11.22599,1834.2,1834.1,5.74770199]
[1746583347884,1.0905,1834.1,1834.0,1.6908]
[1746583348085,6.282,1834.1,1834.0,1.6908]
[1746583348883,5.1915,1834.1,1833.8,1.09068]
[1746583349086,1.09056,1834.0,1833.9,5.74770199]
[1746583349285,1.6707,1834.0,1833.6,1.7109]
[1746583349486,1.09074,1833.7,1833.6,3.3717]
[1746583349992,1.09074,1833.7,1833.6,9.11940199]
[1746583350187,4.69074,1833.7,1833.6,9.11940199]
[1746583352289,7.89854,1833.7,1833.6,9.11940199]
[1746583352793,4.69074,1833.7,1833.6,9.11940199]
[1746583353993,4.69074,1833.7,1833.6,10.21020199]
[1746583354995,3.6,1833.7,1833.6,10.21020199]
[1746583355196,4.69074,1833.7,1833.6,10.21020199]
[1746583355397,4.69074,1833.7,1833.6,9.11940199]
[1746583355795,6.31414,1833.7,1833.6,9.11940199]
[1746583356603,1.0908,1833.6,1833.5,4.964]
[1746583356796,4.2986,1833.6,1833.5,10.71170199]
[1746583357098,9.522,1833.6,1833.5,5.74770199]
[1746583358998,4.6908,1833.6,1833.5,7.42410199]
[1746583359199,1.0908,1833.6,1833.5,7.42410199]
[1746583359896,1.0908,1833.6,1833.5,8.51496199]
[1746583361102,1.0908,1833.6,1833.5,7.42410199]
[1746583361600,1.0908,1833.6,1833.5,8.51496199]
[1746583361998,1.09098,1833.3,1833.2,0.8182]
[1746583362196,2.7279,1833.0,1832.5,3.2078]
[1746583362400,4.29896,1833.0,1832.9,5.74770199]
[1746583362699,6.05456,1833.0,1832.9,5.74770199]
[1746583363194,9.65456,1833.0,1832.9,5.74770199]
[1746583364002,8.5634,1833.0,1832.7,2.79512]
[1746583364299,7.899,1833.0,1832.9,5.74770199]
[1746583364494,3.6,1833.0,1832.9,6.83892199]
[1746583364697,3.6,1833.0,1832.9,1.09122]
[1746583364895,3.6,1833.0,1832.9,8.52242199]
[1746583365096,3.6,1833.0,1832.9,13.52242199]
[1746583365297,1.09096,1833.4,1833.0,2.72788]
[1746583365494,4.2987,1833.5,1833.3,6.83862199]
[1746583365697,4.2987,1833.5,1833.4,7.43120199]
[1746583365897,3.2078,1833.5,1833.4,2.77442]
[1746583366098,3.2078,1833.5,1833.4,8.52212199]
[1746583366605,4.29866,1833.5,1833.4,8.52212199]
[1746583367204,3.2078,1833.5,1833.4,8.52212199]
[1746583367404,4.29866,1833.5,1833.4,8.52212199]
[1746583368700,3.2078,1833.5,1833.4,8.52212199]
[1746583369306,4.29866,1833.5,1833.4,8.52212199]
[1746583370108,3.2078,1833.5,1833.4,8.52212199]
[1746583370313,2.83935,1833.6,1833.5,1.09086]
[1746583370509,2.83935,1833.6,1833.5,8.52396199]
[1746583372310,2.83935,1833.6,1833.5,7.43310199]
[1746583372904,2.83935,1833.6,1833.5,1.09086]
[1746583374409,1.09092,1833.4,1833.3,2.70044]
[1746583374609,1.0909,1833.5,1833.4,6.83861199]
[1746583375312,1.09098,1833.3,1833.2,1.6366]
[1746583375514,1.09104,1833.2,1833.1,2.79096]
[1746583375812,2.71024,1833.2,1833.1,8.53866199]
[1746583376013,2.71024,1833.2,1833.1,7.44760199]
[1746583376214,6.31024,1833.2,1833.1,7.44760199]
[1746583376415,6.31024,1833.2,1833.1,2.791]
[1746583376612,1.09116,1833.0,1832.9,6.5473]
[1746583376814,1.09116,1833.0,1832.9,12.29500199]
[1746583377714,1.09116,1833.0,1832.9,13.38618199]
[1746583378216,1.09114,1833.1,1833.0,1.09114]
[1746583378416,1.09114,1833.1,1833.0,2.79104]
[1746583378612,1.09114,1833.1,1833.0,1.6999]
[1746583378917,1.09128,1832.8,1832.7,1.5838]
[1746583379122,1.09128,1832.8,1832.7,3.2957]
[1746583379318,1.09128,1832.8,1832.7,9.04340199]
[1746583379821,1.09128,1832.8,1832.7,10.13474199]
[1746583380319,1.09124,1832.9,1832.7,10.13469199]
[1746583380521,1.09121,1833.0,1832.9,6.83892199]
[1746583380721,1.09121,1833.0,1832.9,5.74770199]
[1746583380916,1.09121,1833.0,1832.9,1.09122]
[1746583381220,1.09121,1833.0,1832.9,1.7119]
[1746583381415,2.82771,1833.0,1832.9,1.7119]
[1746583382120,2.82771,1833.0,1832.9,2.80312]
[1746583382321,6.80525396,1833.1,1833.0,1.09116]
[1746583382520,3.59745396,1833.1,1833.0,8.57856199]
[1746583383122,3.59745396,1833.1,1833.0,11.78636199]
[1746583383710,3.59745396,1833.1,1833.0,16.73136199]
[1746583384723,5.38890167,1833.2,1833.0,16.73136199]
[1746583384724,5.38890167,1833.2,1833.1,1.0911]
[1746583384916,6.43640305,1833.5,1833.2,4.29884]
[1746583385117,19.2929589,1834.1,1833.8,1.09068]
[1746583385425,10.95994238,1833.9,1833.8,50.04348]
[1746583386016,10.95994238,1833.9,1833.8,46.83568]
[1746583386214,12.05056238,1833.9,1833.8,45.745]
[1746583386418,12.05056238,1833.9,1833.6,6.03576]
[1746583386419,1.09074,1833.7,1833.6,6.03576]
[1746583386623,1.09074,1833.7,1833.6,4.945]
[1746583386822,1.09074,1833.7,1833.6,46.8358]
[1746583387122,1.09074,1833.7,1833.6,40.8]
[1746583387319,4.69074,1833.7,1833.6,40.8]
[1746583387526,1.09083,1833.6,1833.4,6.03589]
[1746583387716,1.6506,1833.5,1833.4,6.03589]
[1746583388117,1.6506,1833.5,1833.4,46.83589]
[1746583388623,1.6506,1833.5,1833.4,1.09089]
[1746583389127,2.86206,1833.7,1833.5,1.09086]
[1746583389312,2.7414,1833.6,1833.4,43.55058]
[1746583389519,2.7414,1833.6,1833.5,1.09086]
[1746583390525,2.7414,1833.6,1833.4,43.55059]
[1746583390824,1.6506,1833.6,1833.5,1.09086]
[1746583391023,2.79753,1833.8,1833.7,1.09074]
[1746583391220,1.7068,1833.8,1833.7,1.09074]
[1746583391627,10.1468,1833.9,1833.8,1.09068]
[1746583392127,10.1468,1833.9,1833.8,6.03468]
[1746583392427,4.79742,1833.9,1833.8,6.03468]
[1746583393527,3.7068,1833.9,1833.8,6.03468]
[1746583394826,2.0,1833.9,1833.8,6.03468]
[1746583395720,3.7259,1833.9,1833.8,6.03468]
[1746583396525,4.81652,1833.9,1833.8,6.03468]
[1746583396935,3.7259,1833.9,1833.8,6.03468]
[1746583397322,4.81652,1833.9,1833.8,4.944]
[1746583397519,4.81652,1833.9,1833.8,6.03468]
[1746583398424,3.7259,1833.9,1833.8,6.03468]
[1746583399419,4.81652,1833.9,1833.8,6.03468]
[1746583399830,4.81652,1833.9,1833.8,4.944]
[1746583400330,4.81652,1833.9,1833.8,6.03468]
[1746583400827,4.81652,1833.9,1833.8,4.944]
[1746583401029,1.09081,1833.6,1833.5,1.09082]
[1746583401235,1.09081,1833.6,1833.5,4.938]
[1746583401733,1.09081,1833.6,1833.5,45.738]
[1746583402031,1.09081,1833.6,1833.5,46.82886]
[1746583402233,2.75311,1833.6,1833.5,46.82886]
[1746583402831,2.75311,1833.6,1833.5,45.738]
[1746583403131,8.09691,1833.6,1833.5,46.82886]
[1746583404133,7.0061,1833.6,1833.5,46.82886]
[1746583405028,8.0969,1833.6,1833.5,46.82886]
[1746583405420,7.0061,1833.6,1833.5,46.82886]
[1746583405623,5.2623,1833.6,1833.5,46.82886]
[1746583405827,3.6,1833.6,1833.5,46.82886]
[1746583406224,1.6278,1833.6,1833.5,46.82886]
[1746583407633,2.7186,1833.6,1833.5,46.82886]
[1746583408030,2.7186,1833.6,1833.5,45.738]